bitfinex/quotes_SOLUSD_20250918
["timestamp","ask_amount","ask_price","bid_price","bid_amount"]
[1758215636333,5.81491927,252.72,252.69,0.03]
[1758215636533,1.15463812,252.71,252.69,0.03]
[1758215636733,39.3,252.7,252.69,0.03]
[1758215637148,39.96,252.7,252.69,0.03]
[1758215639751,0.66,252.7,252.69,0.03]
[1758215639953,39.92,252.7,252.69,0.03]
[1758215640327,40.41465769,252.7,252.66,0.03]
[1758215640651,0.49465769,252.7,252.66,0.03]
[1758215640834,39.92,252.69,252.66,0.03]
[1758215641034,0.49469684,252.68,252.66,0.03]
[1758215641434,0.66,252.67,252.66,0.03]
[1758215642045,4.61773142,252.67,252.66,0.03]
[1758215643653,18.21332543,252.67,252.66,0.03]
[1758215643853,18.21332543,252.67,252.63,0.03]
[1758215644045,5.81491927,252.64,252.43,0.2]
[1758215644256,5.81491927,252.55,252.43,0.2]
[1758215644433,5.81491927,252.55,252.3,0.03]
[1758215644434,5.81491927,252.46,252.3,0.03]
[1758215644647,5.81491927,252.41,252.3,0.03]
[1758215644837,0.49524564,252.4,252.3,0.03]
[1758215645164,39.22,252.39,252.3,0.03]
[1758215645335,0.49528488,252.38,252.3,0.03]
[1758215645754,39.22,252.37,252.3,0.03]
[1758215646036,0.49532414,252.36,252.3,0.03]
[1758215646573,39.2,252.35,252.3,0.03]
[1758215646761,39.87,252.35,252.3,0.03]
[1758215646938,0.67,252.35,252.3,0.03]
[1758215647140,0.67,252.41,252.31,0.57]
[1758215647740,0.49524564,252.4,252.3,0.03]
[1758215647949,39.18,252.39,252.3,0.03]
[1758215648155,1.16528488,252.38,252.3,0.03]
[1758215648539,39.18,252.37,252.3,0.03]
[1758215648735,0.67,252.42,252.3,0.03]
[1758215648947,1.1652064,252.42,252.3,0.03]
[1758215649153,39.18,252.41,252.3,0.03]
[1758215649349,39.18,252.4,252.3,0.03]
[1758215649548,39.18,252.39,252.3,0.03]
[1758215649746,39.18,252.38,252.3,0.03]
[1758215650065,0.67,252.42,252.3,0.03]
[1758215650244,39.67522602,252.41,252.3,0.03]
[1758215650673,39.16,252.4,252.3,0.03]
[1758215651639,0.67,252.42,252.3,0.03]
[1758215652052,0.49514755,252.45,252.3,0.03]
[1758215652268,39.16,252.44,252.31,0.57]
[1758215652563,0.67,252.47,252.31,0.57]
[1758215652564,39.14,252.43,252.31,0.57]
[1758215652871,0.67,252.47,252.31,0.57]
[1758215653048,1.16510832,252.47,252.31,0.57]
[1758215653367,39.63512794,252.46,252.33,26.0]
[1758215653577,0.67,252.47,252.33,26.0]
[1758215653768,39.81,252.46,252.34,3.96290718]
[1758215653947,0.67,252.45,252.34,3.96290718]
[1758215654146,1.16516716,252.44,252.34,3.96290718]
[1758215654464,39.12,252.43,252.34,3.96290718]
[1758215654663,0.67,252.42,252.34,13.87017515]
[1758215654862,0.67,252.42,252.34,13.81931342]
[1758215655442,39.12,252.41,252.34,13.81931342]
[1758215655659,0.67,252.45,252.34,13.81931342]
[1758215655867,0.67,252.45,252.37,26.0]
[1758215656066,39.1,252.44,252.37,26.0]
[1758215656671,39.1,252.43,252.37,26.57]
[1758215656963,39.1,252.42,252.37,26.57]
[1758215657181,39.1,252.42,252.37,26.0]
[1758215657355,0.67,252.47,252.37,26.0]
[1758215657552,39.1,252.46,252.37,26.0]
[1758215657761,39.1,252.46,252.38,3.9622791]
[1758215657947,0.67,252.45,252.39,26.0]
[1758215658267,39.08,252.44,252.41,26.0]
[1758215658471,39.75,252.44,252.41,26.0]
[1758215658650,0.67,252.43,252.41,26.0]
[1758215659057,39.08,252.42,252.41,26.0]
[1758215659367,0.67,252.49,252.41,26.0]
[1758215659871,0.67,252.49,252.42,13.86577925]
[1758215660046,39.06,252.48,252.42,13.86577925]
[1758215660243,0.67,252.47,252.42,3.96165121]
[1758215660449,39.06,252.48,252.42,3.96165121]
[1758215660679,39.06,252.47,252.42,13.86577925]
[1758215661243,0.67,252.49,252.42,13.86577925]
[1758215661668,40.20508871,252.48,252.42,3.96165121]
[1758215661860,40.20508871,252.48,252.39,9.9052182]
[1758215662369,0.67,252.47,252.39,9.9052182]
[1758215662572,0.49512794,252.46,252.39,9.9052182]
[1758215662773,0.67,252.45,252.39,9.9052182]
[1758215663471,39.02,252.44,252.39,9.9052182]
[1758215663672,0.67,252.49,252.39,9.9052182]
[1758215663977,39.0,252.48,252.39,13.86734031]
[1758215664275,0.67,252.47,252.39,13.86734031]
[1758215664477,1.16510832,252.47,252.39,13.86734031]
[1758215664851,0.67,252.46,252.39,13.86734031]
[1758215666557,1.16514755,252.45,252.36,3.96259312]
[1758215666778,0.67,252.44,252.36,3.96259312]
[1758215667073,0.67,252.44,252.34,3.99279695]
[1758215667074,0.49518678,252.43,252.34,3.99279695]
[1758215667273,0.67,252.42,252.34,3.99279695]
[1758215667483,1.16522602,252.41,252.34,0.03]
[1758215667668,38.96,252.4,252.34,0.03]
[1758215667855,0.49526526,252.39,252.34,0.03]
[1758215668052,18.00394495,252.46,252.34,0.03]
[1758215668257,40.12514755,252.45,252.34,0.03]
[1758215668457,13.8646807,252.44,252.34,0.03]
[1758215668664,13.82372381,252.44,252.34,0.03]
[1758215668859,1.16518678,252.43,252.34,0.03]
[1758215670980,47.02195537,252.42,252.34,0.03]
[1758215671190,0.49522602,252.41,252.34,0.03]
[1758215671482,0.67,252.4,252.34,0.03]
[1758215671672,0.49526526,252.39,252.34,0.03]
[1758215671974,0.67,252.38,252.34,0.03]
[1758215672177,0.49530451,252.37,252.34,0.03]
[1758215672373,38.9,252.36,252.34,0.03]
[1758215672570,39.62,252.36,252.34,0.03]
[1758215672777,0.72,252.35,252.34,0.03]
[1758215672982,38.9,252.36,252.34,0.03]
[1758215673162,0.72,252.35,252.34,0.03]
[1758215674274,38.88,252.35,252.34,0.03]
[1758215676159,0.72,252.39,252.34,0.03]
[1758215676459,4.20030416,252.44,252.34,0.99629071]
[1758215676460,38.86,252.38,252.34,0.99629071]
[1758215676665,38.86,252.38,252.35,0.57]
[1758215676865,38.86,252.38,252.36,0.57]
[1758215677572,0.06,252.44,252.36,0.57]
[1758215677773,0.06,252.44,252.34,0.03]
[1758215677774,39.56,252.43,252.34,0.03]
[1758215677960,0.4952064,252.42,252.34,0.03]
[1758215678159,0.4952064,252.42,252.34,26.03]
[1758215678160,0.72,252.41,252.34,26.03]
[1758215678582,1.21524564,252.4,252.34,26.03]
[1758215679092,38.82,252.39,252.34,26.03]
[1758215679459,1.27516716,252.44,252.34,26.03]
[1758215679673,38.8,252.43,252.34,26.03]
[1758215680879,1.21522602,252.41,252.35,29.96275014]
[1758215681085,0.72,252.4,252.35,29.96275014]
[1758215681272,1.21526526,252.39,252.35,29.96275014]
[1758215681477,0.72,252.38,252.35,29.96275014]
[1758215681679,38.78,252.38,252.35,3.96275014]
[1758215682386,0.72,252.37,252.35,3.96275014]
[1758215683059,38.78,252.38,252.35,3.96275014]
[1758215683256,38.76,252.37,252.35,3.96275014]
[1758215683585,38.76,252.37,252.35,13.86962551]
[1758215684098,38.74,252.36,252.35,13.86962551]
[1758215684383,1.27516716,252.44,252.38,26.0]
[1758215684688,38.74,252.43,252.38,26.0]
[1758215685586,0.06,252.44,252.38,26.0]
[1758215685767,38.72,252.43,252.38,26.0]
[1758215686087,38.72,252.43,252.38,26.57]
[1758215686264,38.72,252.43,252.42,26.0]
[1758215686592,0.06,252.44,252.42,26.0]
[1758215686883,38.72,252.43,252.42,26.0]
[1758215687194,38.72,252.43,252.42,29.96165121]
[1758215687566,0.06,252.44,252.42,29.96165121]
[1758215687766,38.7,252.43,252.42,3.96165121]
[1758215689589,38.7,252.43,252.42,26.0]
[1758215692071,0.06,252.44,252.43,3.96149427]
[1758215692790,38.68,252.44,252.43,3.96149427]
[1758215693286,0.06,252.44,252.43,3.96149427]
[1758215693483,38.68,252.44,252.43,3.96149427]
[1758215693885,38.18,252.44,252.43,3.96149427]
[1758215694686,0.06,252.47,252.43,3.96149427]
[1758215694892,38.6,252.46,252.43,3.96149427]
[1758215695087,0.06,252.44,252.43,13.86522995]
[1758215695392,38.64,252.44,252.43,13.86522995]
[1758215695692,0.06,252.47,252.46,26.0]
[1758215695892,38.64,252.47,252.46,26.0]
[1758215696580,38.62,252.47,252.46,26.0]
[1758215697278,0.06,252.47,252.46,26.0]
[1758215697477,38.6,252.47,252.46,26.0]
[1758215697990,38.6,252.47,252.46,29.96102352]
[1758215698989,39.29,252.47,252.46,29.96102352]
[1758215699570,38.6,252.47,252.46,29.96102352]
[1758215700074,39.29,252.47,252.46,29.96102352]
[1758215700684,0.69,252.47,252.46,29.96102352]
[1758215700994,39.19,252.47,252.46,29.96102352]
[1758215701384,0.69,252.47,252.46,3.96102352]
[1758215701586,39.17,252.47,252.46,3.96102352]
[1758215702290,39.17,252.47,252.43,9.90373568]
[1758215702291,0.69,252.47,252.43,13.86522995]
[1758215702597,38.48,252.46,252.45,26.0]
[1758215702779,0.06,252.5,252.46,26.0]
[1758215702973,38.46,252.49,252.46,26.0]
[1758215703376,0.06,252.5,252.47,0.57]
[1758215703610,32.06,252.57,252.48,0.57]
[1758215703775,38.46,252.56,252.48,0.57]
[1758215704106,38.46,252.56,252.48,0.96607097]
[1758215704396,38.46,252.56,252.52,26.0]
[1758215704587,39.15,252.56,252.52,26.0]
[1758215704981,38.44,252.55,252.52,26.0]
[1758215706993,0.69,252.54,252.53,3.95992555]
[1758215707590,32.06,252.57,252.53,13.85973943]
[1758215707789,38.4,252.54,252.53,13.85973943]
[1758215707992,39.09,252.54,252.53,13.85973943]
[1758215708888,38.4,252.54,252.53,13.85973943]
[1758215709107,32.06,252.57,252.53,13.85973943]
[1758215709293,38.38,252.54,252.53,3.95992555]
[1758215709496,39.07,252.54,252.53,29.95992555]
[1758215709698,39.07,252.54,252.53,26.0]
[1758215709898,39.05,252.54,252.35,79.7]
[1758215710109,13.59559401,252.52,252.36,13.86907592]
[1758215710291,1.18502989,252.51,252.36,13.86907592]
[1758215710483,0.69,252.5,252.36,13.86907592]
[1758215710683,1.18506911,252.49,252.36,13.86907592]
[1758215711005,39.03,252.48,252.39,26.0]
[1758215711194,1.18510832,252.47,252.42,0.03]
[1758215711808,5.14599832,252.47,252.42,0.03]
[1758215713181,1.18510832,252.47,252.42,0.03]
[1758215713384,0.69,252.46,252.42,0.03]
[1758215713597,38.81514755,252.45,252.42,0.03]
[1758215713903,39.50514755,252.45,252.42,0.03]
[1758215714087,0.69,252.44,252.42,0.03]
[1758215714406,38.3,252.43,252.42,26.03]
[1758215714705,38.99,252.43,252.42,0.03]
[1758215715106,0.06,252.55,252.42,0.6]
[1758215715404,0.06,252.69,252.56,26.0]
[1758215715579,2.06515041,252.7,252.64,26.0]
[1758215715780,0.06,252.72,252.66,13.59559401]
[1758215716001,0.06,252.75,252.7,0.28432314]
[1758215716187,0.06,252.75,252.71,2.84482475]
[1758215716188,35.46,252.74,252.71,2.84482475]
[1758215716395,35.46,252.74,252.72,2.84482475]
[1758215716583,35.46,252.74,252.73,2.84482475]
[1758215716789,35.46,252.74,252.73,28.84482475]
[1758215718697,0.06,252.75,252.74,26.0]
[1758215718904,38.28,252.75,252.74,29.95663527]
[1758215719288,0.1,252.81,252.75,13.59559401]
[1758215719513,0.06,252.86,252.82,26.28432314]
[1758215719514,1e-08,252.83,252.82,26.28432314]
[1758215719692,1e-08,252.83,252.82,26.0]
[1758215720007,0.69000001,252.83,252.77,26.0]
[1758215720691,0.69,252.82,252.74,3.95663527]
[1758215720893,0.69,252.81,252.7,9.89287531]
[1758215721114,0.69,252.8,252.71,28.82378583]
[1758215721312,0.69,252.8,252.71,26.0]
[1758215721485,0.69,252.79,252.71,26.0]
[1758215721805,38.18,252.78,252.71,26.0]
[1758215722008,0.69000001,252.83,252.71,26.0]
[1758215722185,38.18,252.82,252.72,0.97432314]
[1758215722387,38.18,252.82,252.73,2.81965775]
[1758215722911,38.18,252.82,252.74,3.95663527]
[1758215723803,38.18,252.82,252.74,13.84822346]
[1758215724006,1e-08,252.83,252.77,26.0]
[1758215724185,38.16,252.81,252.77,26.0]
[1758215724600,0.69,252.8,252.77,26.0]
[1758215724805,0.69,252.79,252.63,0.69]
[1758215724996,4.64594052,252.79,252.66,9.89444484]
[1758215725197,0.69,252.78,252.66,9.89444484]
[1758215725404,0.69,252.77,252.69,26.0]
[1758215726512,1e-08,252.83,252.69,26.0]
[1758215726718,1e-08,252.83,252.73,26.0]
[1758215726719,38.12,252.82,252.73,26.0]
[1758215726893,38.12,252.82,252.77,26.0]
[1758215727906,38.81,252.82,252.77,26.0]
[1758215728118,38.81,252.82,252.59,6.54891073]
[1758215728119,0.69,252.81,252.59,6.54891073]
[1758215728290,0.69,252.8,252.66,9.89471308]
[1758215728492,0.69,252.79,252.66,9.89471308]
[1758215729311,1e-08,252.83,252.69,26.0]
[1758215729488,38.08,252.82,252.69,26.0]
[1758215729689,38.08,252.82,252.7,0.69]
[1758215730697,0.06,252.79,252.7,0.69]
[1758215731023,0.06,252.79,252.74,26.0]
[1758215732001,0.06,252.79,252.74,26.69]
[1758215732403,0.06,252.79,252.74,26.0]
[1758215733103,0.06,252.79,252.78,26.0]
[1758215734412,0.06,252.82,252.78,26.7]
[1758215734617,0.06,252.82,252.79,0.7]
[1758215735223,0.06,252.82,252.8,3.9556962]
[1758215736724,0.06,252.82,252.81,0.7]
[1758215737092,0.06,252.82,252.8,3.9556962]
[1758215737701,0.67,252.82,252.75,6.68496864]
[1758215737916,37.98,252.81,252.75,0.7]
[1758215738115,37.98,252.81,252.76,26.0]
[1758215738320,1e-08,252.83,252.77,0.7]
[1758215738707,1e-08,252.83,252.78,0.39560091]
[1758215739128,1e-08,252.83,252.82,26.0]
[1758215739514,1e-08,252.83,252.82,26.7]
[1758215740234,1e-08,252.83,252.8,13.8449367]
[1758215740404,1e-08,252.83,252.8,3.9556962]
[1758215740602,1e-08,252.83,252.7,0.39572615]
[1758215740603,0.67,252.82,252.7,0.7]
[1758215740926,0.67,252.82,252.68,13.85151178]
[1758215741102,0.67,252.81,252.68,13.85151178]
[1758215741422,0.67,252.8,252.68,14.55151178]
[1758215741606,0.67,252.8,252.71,26.0]
[1758215741924,37.92,252.79,252.71,26.7]
[1758215742106,37.92,252.79,252.71,26.0]
[1758215742297,0.67,252.78,252.68,13.85151178]
[1758215743204,0.67,252.78,252.71,26.0]
[1758215743429,0.67,252.78,252.72,13.8493194]
[1758215745017,37.92,252.79,252.72,13.8493194]
[1758215745711,38.55,252.78,252.72,13.8493194]
[1758215745914,0.67000001,252.83,252.75,26.0]
[1758215746125,37.88,252.82,252.75,26.0]
[1758215747136,37.88,252.82,252.75,105.7]
[1758215747307,1e-08,252.83,252.76,1.09563222]
[1758215747509,1e-08,252.83,252.8,26.0]
[1758215747908,0.67,252.82,252.77,13.84657989]
[1758215748325,0.06,252.86,252.77,13.84657989]
[1758215748326,0.06,252.86,252.81,26.0]
[1758215748816,0.06,252.86,252.82,0.7]
[1758215749038,0.06,252.86,252.8,26.0]
[1758215749534,0.06,252.86,252.81,13.84438906]
[1758215750307,38.49,252.85,252.81,3.95553973]
[1758215750511,37.82,252.85,252.81,3.95553973]
[1758215751109,37.82,252.85,252.81,13.84438906]
[1758215751617,0.67,252.84,252.8,26.0]
[1758215751831,37.82,252.85,252.77,13.84657989]
[1758215751832,0.67,252.83,252.77,13.84657989]
[1758215752350,37.82,252.85,252.77,13.84657989]
[1758215753227,0.67,252.84,252.77,13.84657989]
[1758215754435,0.71,252.83,252.77,3.95616568]
[1758215754645,0.71,252.82,252.77,3.95616568]
[1758215754812,0.71,252.81,252.77,3.95616568]
[1758215755017,0.71,252.8,252.7,9.89314396]
[1758215755222,0.71,252.79,252.71,3.95710498]
[1758215755432,0.71,252.78,252.67,9.89427283]
[1758215756248,0.71,252.78,252.67,10.55427283]
[1758215757245,0.71,252.77,252.67,9.89427283]
[1758215757427,0.71,252.76,252.67,9.89427283]
[1758215757634,37.74,252.75,252.67,13.85200425]
[1758215758330,0.71,252.74,252.67,13.85200425]
[1758215758729,0.71,252.78,252.67,13.85200425]
[1758215758943,37.74,252.77,252.7,26.0]
[1758215759245,0.71,252.78,252.7,26.0]
[1758215759433,37.72,252.76,252.7,26.0]
[1758215759836,37.72,252.76,252.71,13.84986743]
[1758215760052,38.43,252.76,252.71,13.84986743]
[1758215761147,37.72,252.78,252.74,26.0]
[1758215761943,37.72,252.78,252.75,13.84767556]
[1758215762322,0.71,252.77,252.75,3.95647873]
[1758215762525,37.72,252.78,252.73,3.95666022]
[1758215762858,0.7,252.76,252.69,3.95741818]
[1758215763040,0.7,252.75,252.69,3.95741818]
[1758215763356,37.72,252.78,252.66,0.03]
[1758215763357,0.7,252.74,252.66,3.98785988]
[1758215763561,0.7,252.73,252.66,3.98785988]
[1758215763858,37.68,252.72,252.66,0.03]
[1758215764175,0.7,252.73,252.66,0.03]
[1758215764628,37.66,252.72,252.66,0.03]
[1758215764830,37.66,252.72,252.69,0.03]
[1758215765030,0.7,252.71,252.69,0.03]
[1758215765457,0.7,252.7,252.69,0.03]
[1758215768652,0.49117464,252.7,252.69,0.03]
[1758215769764,51.70676865,252.7,252.69,0.03]
[1758215770139,0.49117464,252.7,252.69,0.03]
[1758215770470,37.6,252.7,252.69,0.03]
[1758215770856,13.59559401,252.69,252.66,0.03]
[1758215771053,14.29559401,252.69,252.66,0.03]
[1758215771250,0.7,252.68,252.66,0.03]
[1758215771778,37.6,252.7,252.66,0.03]
[1758215772080,0.7,252.68,252.66,0.03]
[1758215772751,0.7,252.67,252.66,0.03]
[1758215772952,39.3,252.7,252.66,0.03]
[1758215773381,0.7,252.69,252.66,0.03]
[1758215773554,38.6,252.7,252.66,0.03]
[1758215773754,38.6,252.7,252.67,0.69]
[1758215773954,38.6,252.7,252.66,0.03]
[1758215774208,38.6,252.7,252.67,0.69]
[1758215774380,38.6,252.7,252.66,0.03]
[1758215774574,38.6,252.7,252.66,0.72]
[1758215774875,38.6,252.7,252.67,0.69]
[1758215775361,38.6,252.7,252.69,26.0]
[1758215775674,1.0,252.7,252.69,26.69]
[1758215777168,1e-08,252.7,252.69,26.97432314]
[1758215777352,1e-08,252.7,252.69,40.96565896]
[1758215777755,1e-08,252.7,252.69,14.96565896]
[1758215777953,1e-08,252.7,252.69,26.97432314]
[1758215779557,1e-08,252.7,252.69,52.46565896]
[1758215779862,1e-08,252.7,252.69,40.96565896]
[1758215780165,1e-08,252.7,252.69,14.96565896]
[1758215780368,1e-08,252.7,252.69,52.46565896]
[1758215780564,1e-08,252.7,252.69,58.11134982]
[1758215781461,0.06,252.85,252.74,0.28432314]
[1758215781462,1e-08,252.85,252.74,0.28432314]
[1758215781659,1e-08,252.85,252.8,0.28432314]
[1758215781871,1e-08,252.85,252.8,26.28432314]
[1758215782056,1e-08,252.85,252.81,0.69]
[1758215782664,1e-08,252.85,252.84,26.0]
[1758215784680,1e-08,252.85,252.84,29.9550704]
[1758215789260,1e-08,252.86,252.84,30.6450704]
[1758215789463,1e-08,252.88,252.85,0.97432314]
[1758215789880,1e-08,252.88,252.86,0.69]
[1758215790187,0.06,252.92,252.87,0.39546011]
[1758215790488,0.7,253.0,252.89,0.28432314]
[1758215790660,0.7,253.0,252.9,0.69]
[1758215790962,0.7,253.0,252.94,26.0]
[1758215791561,0.7,253.03,252.94,26.0]
[1758215791764,0.7,253.06,252.95,26.69]
[1758215792169,0.7,253.06,252.96,26.0]
[1758215792872,0.7,253.06,252.97,14.52563267]
[1758215796382,0.7,253.11,253.0,26.0]
[1758215796582,0.7,253.11,253.01,0.69]
[1758215797477,37.34,253.16,253.01,0.69]
[1758215797478,0.7,253.15,253.01,0.97432314]
[1758215797681,37.34,253.16,253.03,0.28432314]
[1758215797983,37.34,253.16,253.08,26.0]
[1758215798979,0.7,253.15,253.08,26.0]
[1758215799975,0.06,253.11,253.1,26.0]
[1758215801178,0.06,253.11,253.07,3.95144985]
[1758215801381,0.7,253.1,252.99,10.57159355]
[1758215801697,0.7,253.09,252.99,0.69]
[1758215802199,4.65119765,253.09,252.95,3.95335046]
[1758215802381,0.7,253.08,252.95,3.95335046]
[1758215802577,3.95119765,253.09,252.98,26.0]
[1758215802578,0.7,253.07,252.98,26.0]
[1758215802780,0.7,253.07,252.95,13.83672662]
[1758215803295,0.06,253.11,252.96,57.50660428]
[1758215803598,0.06,253.11,253.0,26.28432314]
[1758215804288,0.06,253.11,253.04,26.0]
[1758215804881,0.7,253.1,253.01,3.95241294]
[1758215805084,0.7,253.09,253.01,3.95241294]
[1758215805284,0.06,253.11,253.01,3.95241294]
[1758215805285,0.7,253.08,253.01,3.95241294]
[1758215805483,0.7,253.07,252.94,0.69]
[1758215806178,3.95163202,253.06,252.96,9.88298545]
[1758215806381,0.7,253.05,252.99,26.0]
[1758215806593,0.7,253.04,252.99,26.0]
[1758215806910,0.7,253.03,252.89,0.03]
[1758215807109,4.12635755,253.02,252.89,0.03]
[1758215807281,4.12635755,252.99,252.89,0.03]
[1758215807482,0.7,253.01,252.9,3.95410608]
[1758215807695,0.7,253.01,252.89,26.03]
[1758215808003,4.82635755,253.01,252.89,26.03]
[1758215808187,13.83399208,253.0,252.89,0.03]
[1758215808583,4.12635755,252.98,252.89,0.03]
[1758215808985,0.7,252.97,252.89,0.03]
[1758215809685,0.7,252.96,252.89,0.03]
[1758215810400,0.7,252.95,252.89,13.87000948]
[1758215810788,0.7,252.98,252.89,13.87000948]
[1758215810985,0.7,253.04,252.93,0.69]
[1758215811734,37.08,253.06,252.93,0.69]
[1758215811917,0.7,253.05,252.93,0.69]
[1758215812584,0.7,253.05,252.97,26.0]
[1758215812789,0.7,253.04,252.97,26.0]
[1758215813010,0.7,253.03,252.94,13.83727366]
[1758215813187,0.7,253.02,252.94,13.83727366]
[1758215814102,0.7,253.02,252.94,9.8837669]
[1758215815912,0.67,253.01,252.92,3.98381938]
[1758215816095,4.62263862,253.0,252.92,0.03]
[1758215818590,14.50406154,253.0,252.92,0.03]
[1758215818787,17.72195156,252.99,252.92,0.03]
[1758215818985,13.59559401,252.99,252.92,0.03]
[1758215819231,0.67,252.98,252.92,0.03]
[1758215819406,37.0,252.97,252.92,0.03]
[1758215819716,0.67,252.96,252.92,0.03]
[1758215819904,3.95335046,252.95,252.92,0.03]
[1758215820303,0.67,252.96,252.92,0.03]
[1758215820492,0.67,252.94,252.92,0.03]
[1758215820689,37.67,252.95,252.92,0.03]
[1758215820895,0.67,252.94,252.92,0.03]
[1758215821508,37.0,252.95,252.92,0.03]
[1758215821702,0.67,252.93,252.92,0.03]
[1758215822700,37.63,252.93,252.92,0.03]
[1758215823605,3.95314092,252.97,252.92,0.03]
[1758215823606,0.67,252.99,252.92,0.03]
[1758215823918,0.06,253.02,252.93,0.69]
[1758215824236,36.94,253.01,252.93,0.69]
[1758215824407,36.94,253.01,252.94,13.83727366]
[1758215827208,0.06,253.02,252.97,26.0]
[1758215827611,0.06,253.02,252.98,0.69]
[1758215827809,0.06,253.02,252.99,0.69]
[1758215828204,0.06,253.02,253.0,0.69]
[1758215828518,0.06,253.02,253.01,29.95241294]
[1758215828724,0.06,253.02,253.01,30.64241294]
[1758215828921,0.06,253.14,253.02,0.28432314]
[1758215829250,0.06,253.14,253.04,26.0]
[1758215829533,0.06,253.14,253.05,0.69]
[1758215829933,36.88,253.13,253.05,0.69]
[1758215830109,0.06,253.14,253.05,26.97432314]
[1758215830303,0.06,253.14,253.07,0.28432314]
[1758215830516,0.06,253.14,253.1,26.0]
[1758215830836,0.06,253.14,253.11,0.69]
[1758215831041,0.67,253.13,253.04,26.0]
[1758215831344,0.67,253.13,253.06,26.0]
[1758215832437,36.86,253.12,253.03,13.83235189]
[1758215832835,0.67,253.11,253.03,3.95210054]
[1758215833152,0.67,253.1,252.95,9.88304458]
[1758215833316,0.67,253.09,252.95,9.88304458]
[1758215833515,0.67,253.08,252.96,3.95319418]
[1758215833739,0.67,253.07,252.96,3.95319418]
[1758215833912,0.67,253.06,252.96,3.95319418]
[1758215834115,0.67,253.05,252.96,3.95319418]
[1758215834312,37.49,253.04,252.96,3.95319418]
[1758215834536,36.82,253.03,252.96,3.95319418]
[1758215835224,0.67,253.02,252.94,3.95340048]
[1758215835841,0.67,253.02,252.95,26.0]
[1758215836638,0.67,253.02,252.93,9.88415767]
[1758215837245,9.87755688,253.1,252.93,9.88415767]
[1758215837246,46.0,253.17,252.93,9.88415767]
[1758215837445,0.67,253.06,252.96,26.0]
[1758215837629,0.67,253.06,252.97,0.69]
[1758215837835,36.78,253.05,252.97,0.69]
[1758215838238,0.06,253.04,252.97,0.69]
[1758215838668,0.06,253.04,253.01,26.0]
[1758215838952,0.06,253.04,253.02,0.69]
[1758215839339,0.06,253.04,253.03,0.69]
[1758215840153,0.06,253.07,253.03,0.69]
[1758215840728,0.06,253.07,253.04,3.95194435]
[1758215840936,0.06,253.1,253.06,26.0]
[1758215841334,0.06,253.1,253.07,0.69]
[1758215841641,0.06,253.1,253.07,26.69]
[1758215841840,0.06,253.1,253.08,0.69]
[1758215842434,0.06,253.1,253.09,0.69]